[Event "Asian Amateur Rapid 2024"]
[Site "Al Ain"]
[Date "2024.12.15"]
[Round "5.23"]
[White "Eisa Mohmood, Alkhoori"]
[Black "Gong, Bonuonuo"]
[Result "1-0"]
[ECO "B08"]
[WhiteElo "1853"]
[BlackElo "1685"]
[Annotator "NA COMBH"]
[PlyCount "155"]
[EventDate "2024.12.15"]
[EventType "swiss"]
[EventCountry "UAE"]
[SourceTitle "playchess.com"]
[Source "ChessBase"]
[SourceQuality "1"]
[TimeControl "900+10"]

1. e4 {[%emt 0:00:01]} d6 {[%emt 0:00:00]} 2. d4 {[%emt 0:00:01]} Nf6 {[%emt 0:00:01]} 3. Nc3 {[%emt 0:00:01]} g6 {[%emt 0:00:00]} 4. Nf3 {[%emt 0:00:14]} Bg7 {[%emt 0:00:01]} 5. Bc4 {[%emt 0:00:04]} c6 {[%emt 0:00:02]} 6. O-O {[%emt 0:00:23]} O-O {[%emt 0:00:03]} 7. Bb3 {[%emt 0:00:45]} Qc7 {[%emt 0:02:26]} 8. h3 {[%emt 0:00:40]} Rd8 {[%emt 0:00:33]} 9. Bg5 {[%emt 0:01:02]} h6 {[%emt 0:00:23]} 10. Bh4 {[%emt 0:00:03]} Na6 {[%emt 0:00:58]} 11. Qe2 {[%emt 0:00:16]} e5 {[%emt 0:00:10]} 12. Rad1 {[%emt 0:00:43]} exd4 {[%emt 0:00:54]} 13. Nxd4 {[%emt 0:00:17]} Nc5 {[%emt 0:00:10]} 14. Qf3 {[%emt 0:00:10]} g5 {[%emt 0:00:02]} 15. Bg3 {[%emt 0:00:13]} Qe7 {[%emt 0:00:08]} 16. Rfe1 {[%emt 0:00:34]} g4 {[%emt 0:01:10]} 17. Nf5 {[%emt 0:01:20]} Qxe4 {[%emt 0:03:21]} 18. Qxe4 {[%emt 0:01:43]} Nfxe4 {[%emt 0:00:05]} 19. Ne7+ {[%emt 0:00:10]} Kf8 {[%emt 0:00:45]} 20. Nxe4 {[%emt 0:00:12]} Nxe4 {[%emt 0:00:38]} 21. Rxe4 {[%emt 0:00:11]} d5 {[%emt 0:00:02]} 22. Bh4 {[%emt 0:02:17]} Be6 {[%emt 0:00:24]} 23. Ng6+ {[%emt 0:01:18]} Kg8 {[%emt 0:00:26]} 24. Bxd8 {[%emt 0:01:15]} dxe4 {[%emt 0:00:09]} 25. Bxe6 {[%emt 0:00:14]} fxe6 {[%emt 0:00:03]} 26. Rd7 {[%emt 0:00:34]} gxh3 {[%emt 0:00:14]} 27. gxh3 {[%emt 0:00:08]} Bxb2 {[%emt 0:00:08]} 28. Nf4 {[%emt 0:01:17]} b6 {[%emt 0:01:59]} 29. Nxe6 {[%emt 0:00:10]} Be5 {[%emt 0:01:03]} 30. Nc7 {[%emt 0:01:12]} Rc8 {[%emt 0:00:09]} 31. Ne6 {[%emt 0:00:28]} c5 {[%emt 0:00:17]} 32. Bh4 {[%emt 0:01:32]} Rc6 {[%emt 0:00:16]} 33. Re7 {[%emt 0:00:20]} Rd6 {[%emt 0:01:08]} 34. Kf1 {[%emt 0:00:39]} Rd2 {[%emt 0:00:18]} 35. Rxa7 {[%emt 0:00:05]} Rxc2 {[%emt 0:00:09]} 36. Bg3 {[%emt 0:00:20]} Bf6 {[%emt 0:00:27]} 37. Nc7 {[%emt 0:00:10]} c4 {[%emt 0:00:13]} 38. Nd5 {[%emt 0:00:03]} Bd4 {[%emt 0:00:07]} 39. Rc7 {[%emt 0:00:16]} b5 {[%emt 0:00:10]} 40. Rb7 {[%emt 0:00:14]} c3 {[%emt 0:00:09]} 41. Rc7 {[%emt 0:00:09]} Rxa2 {[%emt 0:00:03]} 42. Nxc3 {[%emt 0:00:07]} Ra1+ {[%emt 0:00:22]} 43. Ke2 {[%emt 0:00:08]} b4 {[%emt 0:00:01]} 44. Nxe4 {[%emt 0:00:15]} b3 {[%emt 0:00:33]} 45. Nd2 {[%emt 0:00:13]} b2 {[%emt 0:00:18]} 46. Rb7 {[%emt 0:00:09]} Bc3 {[%emt 0:00:01]} 47. Rb8+ {[%emt 0:00:09]} Kh7 {[%emt 0:00:03]} 48. Rb7+ {[%emt 0:00:04]} Kg8 {[%emt 0:00:09]} 49. Rb8+ {[%emt 0:00:07]} Kf7 {[%emt 0:00:02]} 50. Rb7+ {[%emt 0:00:03]} Ke8 {[%emt 0:00:02]} 51. Rb8+ {[%emt 0:00:26]} Kd7 {[%emt 0:00:02]} 52. Rb7+ {[%emt 0:00:03]} Ke6 {[%emt 0:00:15]} 53. Rb6+ {[%emt 0:00:14]} Kd5 {[%emt 0:00:05]} 54. Rd6+ {[%emt 0:00:11]} Kc5 {[%emt 0:00:19]} 55. Ne4+ {[%emt 0:00:12]} Kb4 {[%emt 0:00:01]} 56. Nxc3 {[%emt 0:00:07]} Kxc3 {[%emt 0:00:02]} 57. Be5+ {[%emt 0:00:08]} Kc2 {[%emt 0:00:17]} 58. Rd2+ {[%emt 0:00:04]} Kb3 {[%emt 0:00:17]} 59. Rxb2+ {[%emt 0:00:02]} Ka3 {[%emt 0:00:02]} 60. Rb3+ {[%emt 0:00:03]} Kxb3 {[%emt 0:00:03]} 61. Bxa1 {[%emt 0:00:02]} Kc4 {[%emt 0:00:02]} 62. Kf3 {[%emt 0:00:05]} Kd5 {[%emt 0:00:01]} 63. Kg4 {[%emt 0:00:01]} Ke6 {[%emt 0:00:01]} 64. Bg7 {[%emt 0:00:04]} h5+ {[%emt 0:00:02]} 65. Kxh5 {[%emt 0:00:01]} Kf5 {[%emt 0:00:00]} 66. Bh6 {[%emt 0:00:08]} Kf6 {[%emt 0:00:01]} 67. Kg4 {[%emt 0:00:05]} Kg6 {[%emt 0:00:01]} 68. Bg5 {[%emt 0:00:02]} Kg7 {[%emt 0:00:01]} 69. h4 {[%emt 0:00:02]} Kh7 {[%emt 0:00:01]} 70. f4 {[%emt 0:00:01]} Kg7 {[%emt 0:00:01]} 71. f5 {[%emt 0:00:01]} Kf7 {[%emt 0:00:01]} 72. h5 {[%emt 0:00:05]} Kg7 {[%emt 0:00:00]} 73. f6+ {[%emt 0:00:02]} Kf7 {[%emt 0:00:01]} 74. Kf5 {[%emt 0:00:01]} Kg8 {[%emt 0:00:01]} 75. Kg6 {[%emt 0:00:24]} Kh8 {[%emt 0:00:00]} 76. Bh6 {[%emt 0:00:05]} Kg8 {[%emt 0:00:01]} 77. f7+ {[%emt 0:00:02]} Kh8 {[%emt 0:00:01] Check Result:?ev?} 78. f8=Q# {[%emt 0:00:03]} 1-0

[Event "Asian Amateur Rapid 2024"]
[Site "Al Ain"]
[Date "2024.12.15"]
[Round "5.24"]
[White "Al Sabti, Wadhah"]
[Black "Ahsan Feroz"]
[Result "0-1"]
[ECO "B07"]
[WhiteElo "1470"]
[BlackElo "1795"]
[Annotator "NA COMBH"]
[PlyCount "82"]
[EventDate "2024.12.15"]
[EventType "swiss"]
[EventCountry "UAE"]
[SourceTitle "playchess.com"]
[Source "ChessBase"]
[SourceQuality "1"]
[TimeControl "900+10"]

1. d4 {[%emt 0:00:01]} Nf6 {[%emt 0:00:01]} 2. Nc3 {[%emt 0:00:02]} g6 {[%emt 0:00:02]} 3. e4 {[%emt 0:00:03]} d6 {[%emt 0:00:01]} 4. Bf4 {[%emt 0:00:02]} Bg7 {[%emt 0:00:02]} 5. Bd3 {[%emt 0:00:14]} Nc6 {[%emt 0:00:03]} 6. Nf3 {[%emt 0:00:04]} Bg4 {[%emt 0:00:02]} 7. d5 {[%emt 0:00:11]} Nd4 {[%emt 0:00:16]} 8. Be2 {[%emt 0:00:18]} Nxe2 {[%emt 0:00:03]} 9. Qxe2 {[%emt 0:00:04]} O-O {[%emt 0:00:03]} 10. h3 {[%emt 0:00:27]} Bxf3 {[%emt 0:00:02]} 11. gxf3 {[%emt 0:00:02]} e6 {[%emt 0:01:28]} 12. O-O-O {[%emt 0:00:27]} exd5 {[%emt 0:03:08]} 13. Nxd5 {[%emt 0:00:19]} Nxd5 {[%emt 0:00:08]} 14. exd5 {[%emt 0:00:21]} Qf6 {[%emt 0:12:11]} 15. Qc4 {[%emt 0:00:51]} b5 {[%emt 0:00:00]} 16. Qb4 {[%emt 0:01:27]} a5 {[%emt 0:00:00]} 17. Qc3 {[%emt 0:00:02]} Qxf4+ {[%emt 0:00:00]} 18. Qd2 {[%emt 0:00:02]} Qxd2+ {[%emt 0:00:00]} 19. Rxd2 {[%emt 0:00:02]} Bh6 {[%emt 0:00:00]} 20. Rhd1 {[%emt 0:00:11]} Rfe8 {[%emt 0:00:00]} 21. b3 {[%emt 0:00:21]} Re2 {[%emt 0:00:00]} 22. c3 {[%emt 0:00:04]} Rae8 {[%emt 0:00:00]} 23. Kc2 {[%emt 0:00:02]} Rxd2+ {[%emt 0:00:00]} 24. Rxd2 {[%emt 0:00:04]} Bxd2 {[%emt 0:00:00]} 25. Kxd2 {[%emt 0:00:01]} Re5 {[%emt 0:00:00]} 26. c4 {[%emt 0:00:03]} bxc4 {[%emt 0:00:00]} 27. bxc4 {[%emt 0:00:01]} a4 {[%emt 0:00:00]} 28. Kd3 {[%emt 0:00:03]} a3 {[%emt 0:00:00]} 29. Kd4 {[%emt 0:00:06]} Re2 {[%emt 0:00:00]} 30. c5 {[%emt 0:00:05]} Rxa2 {[%emt 0:00:00]} 31. cxd6 {[%emt 0:00:03]} cxd6 {[%emt 0:00:00]} 32. Kc3 {[%emt 0:00:01]} Rxf2 {[%emt 0:00:00]} 33. f4 {[%emt 0:00:03]} a2 {[%emt 0:00:00]} 34. f5 {[%emt 0:00:02]} a1=Q+ {[%emt 0:03:20]} 35. Kd3 {[%emt 0:00:02]} Qa3+ {[%emt 0:00:00]} 36. Ke4 {[%emt 0:00:03]} Qf3+ {[%emt 0:00:00]} 37. Kd4 {[%emt 0:00:01]} Rd2+ {[%emt 0:00:00]} 38. Kc4 {[%emt 0:00:02]} Qxd5+ {[%emt 0:00:00]} 39. Kc3 {[%emt 0:00:02]} Qd4+ {[%emt 0:00:00]} 40. Kb3 {[%emt 0:00:01]} Rb2+ {[%emt 0:00:00]} 41. Ka3 {[%emt 0:00:01] Check Result:?ev?} Qb4# {[%emt 0:00:00]} 0-1

[Event "Asian Amateur Rapid 2024"]
[Site "Al Ain"]
[Date "2024.12.15"]
[Round "5.25"]
[White "Hamad Shuaib Al Kaff"]
[Black "Mohamed Yousuf Al-Ali"]
[Result "1-0"]
[ECO "D02"]
[WhiteElo "1710"]
[BlackElo "1569"]
[Annotator "NA COMBH"]
[PlyCount "91"]
[EventDate "2024.12.15"]
[EventType "swiss"]
[EventCountry "UAE"]
[SourceTitle "playchess.com"]
[Source "ChessBase"]
[SourceQuality "1"]
[TimeControl "900+10"]

1. d4 {[%emt 0:00:03]} d5 {[%emt 0:00:05]} 2. Nf3 {[%emt 0:00:02]} Nf6 {[%emt 0:00:01]} 3. g3 {[%emt 0:00:02]} g6 {[%emt 0:00:02]} 4. Bg2 {[%emt 0:00:01]} Bg7 {[%emt 0:00:00]} 5. O-O {[%emt 0:00:02]} O-O {[%emt 0:00:01]} 6. a4 {[%emt 0:00:02]} a5 {[%emt 0:00:04]} 7. Nc3 {[%emt 0:00:15]} e6 {[%emt 0:00:13]} 8. Bf4 {[%emt 0:01:11]} Qe7 {[%emt 0:00:23]} 9. Qd2 {[%emt 0:00:54]} Na6 {[%emt 0:00:36]} 10. Nb5 {[%emt 0:00:28]} Ne4 {[%emt 0:00:22]} 11. Qxa5 {[%emt 0:00:28]} b6 {[%emt 0:01:33]} 12. Qe1 {[%emt 0:00:05]} c6 {[%emt 0:00:42]} 13. Na3 {[%emt 0:00:17]} g5 {[%emt 0:00:39]} 14. Bc1 {[%emt 0:00:39]} c5 {[%emt 0:00:40]} 15. c3 {[%emt 0:00:48]} c4 {[%emt 0:00:52]} 16. Nb5 {[%emt 0:00:38]} Bd7 {[%emt 0:00:33]} 17. Nd2 {[%emt 0:01:04]} f5 {[%emt 0:00:20]} 18. b3 {[%emt 0:00:30]} cxb3 {[%emt 0:00:15]} 19. Ba3 {[%emt 0:00:20]} Qf7 {[%emt 0:00:11]} 20. Bxf8 {[%emt 0:00:16]} Qxf8 {[%emt 0:00:07]} 21. Nxb3 {[%emt 0:00:10]} Bxb5 {[%emt 0:00:05]} 22. axb5 {[%emt 0:00:02]} Nc7 {[%emt 0:00:01]} 23. Rxa8 {[%emt 0:00:21]} Qxa8 {[%emt 0:00:02]} 24. Bxe4 {[%emt 0:00:12]} fxe4 {[%emt 0:00:13]} 25. Qa1 {[%emt 0:00:01]} Qxa1 {[%emt 0:00:09]} 26. Rxa1 {[%emt 0:00:04]} Nxb5 {[%emt 0:00:01]} 27. Ra8+ {[%emt 0:00:17]} Kf7 {[%emt 0:00:03]} 28. Rc8 {[%emt 0:00:06]} Kf6 {[%emt 0:00:32]} 29. Nd2 {[%emt 0:00:06]} Kf5 {[%emt 0:00:22]} 30. Nf1 {[%emt 0:00:26]} h5 {[%emt 0:00:19]} 31. Ne3+ {[%emt 0:00:12]} Kg6 {[%emt 0:00:34]} 32. Kf1 {[%emt 0:00:02]} g4 {[%emt 0:00:12]} 33. Rc6 {[%emt 0:00:14]} Kf7 {[%emt 0:00:07]} 34. Nd1 {[%emt 0:00:27]} Na3 {[%emt 0:00:20]} 35. Rxb6 {[%emt 0:00:45]} Nc4 {[%emt 0:00:01]} 36. Rb7+ {[%emt 0:00:08]} Kf6 {[%emt 0:00:28]} 37. Ne3 {[%emt 0:00:07]} Nxe3+ {[%emt 0:00:21]} 38. fxe3 {[%emt 0:00:02]} Bh6 {[%emt 0:00:24]} 39. Kf2 {[%emt 0:00:02]} Bg5 {[%emt 0:00:13]} 40. Rc7 {[%emt 0:00:17]} h4 {[%emt 0:00:03]} 41. c4 {[%emt 0:00:03]} dxc4 {[%emt 0:00:05]} 42. Rxc4 {[%emt 0:00:02]} h3 {[%emt 0:00:45]} 43. Rc6 {[%emt 0:00:10]} Kf5 {[%emt 0:00:28]} 44. Rc5+ {[%emt 0:00:33]} Kg6 {[%emt 0:05:25]} 45. d5 {[%emt 0:09:46]} Kf5 {[%emt 0:03:48] Check Result:1.44} 46. Rc6 {[%emt 0:00:10]} 1-0

[Event "Asian Amateur Rapid 2024"]
[Site "Al Ain"]
[Date "2024.12.15"]
[Round "5.26"]
[White "Saket Atul Kumar"]
[Black "Ahmed Younes Alkhemeiri"]
[Result "1-0"]
[ECO "C47"]
[WhiteElo "1633"]
[BlackElo "1584"]
[Annotator "NA COMBH"]
[PlyCount "77"]
[EventDate "2024.12.15"]
[EventType "swiss"]
[EventCountry "UAE"]
[SourceTitle "playchess.com"]
[Source "ChessBase"]
[SourceQuality "1"]
[TimeControl "900+10"]

1. e4 {[%emt 0:00:01]} e5 {[%emt 0:00:01]} 2. Nf3 {[%emt 0:00:01]} Nc6 {[%emt 0:00:02]} 3. Nc3 {[%emt 0:00:01]} Nf6 {[%emt 0:00:05]} 4. d4 {[%emt 0:00:02]} exd4 {[%emt 0:00:17]} 5. Nxd4 {[%emt 0:00:02]} Bc5 {[%emt 0:00:24]} 6. Be3 {[%emt 0:00:04]} Bxd4 {[%emt 0:00:22]} 7. Bxd4 {[%emt 0:16:09]} Nxd4 8. Qxd4 {[%emt 0:00:00]} d6 {[%emt 0:00:12]} 9. O-O-O {[%emt 0:00:00]} Be6 {[%emt 0:00:12]} 10. f4 {[%emt 0:00:00]} Bg4 {[%emt 0:00:07]} 11. Re1 {[%emt 0:00:00]} O-O {[%emt 0:00:12]} 12. f5 {[%emt 0:00:00]} c5 {[%emt 0:00:31]} 13. Qd2 {[%emt 0:00:00]} Re8 {[%emt 0:00:39]} 14. h3 {[%emt 0:00:00]} Bxf5 {[%emt 0:00:08]} 15. exf5 {[%emt 0:00:00]} Rxe1+ {[%emt 0:00:03]} 16. Qxe1 {[%emt 0:00:00]} Qd7 {[%emt 0:00:01]} 17. Bd3 {[%emt 0:00:00]} a6 {[%emt 0:00:01]} 18. g4 {[%emt 0:00:00]} b5 {[%emt 0:00:05]} 19. g5 {[%emt 0:00:00]} Ne8 {[%emt 0:00:04]} 20. g6 {[%emt 0:00:00]} fxg6 {[%emt 0:00:11]} 21. fxg6 {[%emt 0:00:00]} h6 {[%emt 0:00:00]} 22. Be4 {[%emt 0:00:00]} Rc8 {[%emt 0:00:09]} 23. Rf1 {[%emt 0:00:00]} Nf6 {[%emt 0:00:02]} 24. Bf5 {[%emt 0:00:00]} Qc7 {[%emt 0:00:12]} 25. Qe6+ {[%emt 0:00:00]} Kh8 {[%emt 0:00:03]} 26. Qxc8+ {[%emt 0:00:00]} Qxc8 {[%emt 0:00:01]} 27. Bxc8 {[%emt 0:00:00]} b4 {[%emt 0:00:01]} 28. Nd5 {[%emt 0:03:30]} Kg8 {[%emt 0:00:18]} 29. Be6+ {[%emt 0:00:00]} Kf8 {[%emt 0:00:03]} 30. Nxf6 {[%emt 0:00:00]} gxf6 {[%emt 0:00:01]} 31. Rxf6+ {[%emt 0:00:00]} Ke7 {[%emt 0:00:01]} 32. Rf7+ {[%emt 0:00:00]} Kxe6 {[%emt 0:00:01]} 33. Rf1 {[%emt 0:00:00]} c4 {[%emt 0:00:04]} 34. g7 {[%emt 0:00:00]} b3 {[%emt 0:00:04]} 35. g8=Q+ {[%emt 0:00:00]} Kd7 {[%emt 0:00:00]} 36. Rf7+ {[%emt 0:00:00]} Kc6 {[%emt 0:00:01]} 37. Qc8+ {[%emt 0:00:00]} Kb5 {[%emt 0:00:01]} 38. Rf5+ {[%emt 0:00:00]} Ka4 {[%emt 0:00:01] Check Result:#1} 39. Qxa6+ {[%emt 0:00:00]} 1-0

[Event "Asian Amateur Rapid 2024"]
[Site "Al Ain"]
[Date "2024.12.15"]
[Round "5.27"]
[White "Al Balushi, Salim"]
[Black "Mohammed Hamad Alkhemeiri"]
[Result "1-0"]
[ECO "A18"]
[WhiteElo "1612"]
[BlackElo "1482"]
[Annotator "NA COMBH"]
[PlyCount "59"]
[EventDate "2024.12.15"]
[EventType "swiss"]
[EventCountry "UAE"]
[SourceTitle "playchess.com"]
[Source "ChessBase"]
[SourceQuality "1"]
[TimeControl "900+10"]

1. c4 {[%emt 0:00:02]} Nf6 {[%emt 0:00:03]} 2. Nc3 {[%emt 0:00:03]} e6 {[%emt 0:00:02]} 3. e4 {[%emt 0:00:05]} Bb4 {[%emt 0:00:09]} 4. d3 {[%emt 0:00:32]} d6 {[%emt 0:00:24]} 5. g3 {[%emt 0:00:08]} b6 {[%emt 0:00:02]} 6. Bg2 {[%emt 0:00:02]} Bb7 {[%emt 0:00:03]} 7. Nge2 {[%emt 0:00:06]} O-O {[%emt 0:00:07]} 8. a3 {[%emt 0:15:32]} Bxc3+ {[%emt 0:00:06]} 9. Nxc3 {[%emt 0:00:00]} Nbd7 {[%emt 0:00:04]} 10. O-O {[%emt 0:00:00]} c5 {[%emt 0:00:47]} 11. Be3 {[%emt 0:00:00]} a6 {[%emt 0:03:47]} 12. h3 {[%emt 0:00:00]} Qc7 {[%emt 0:01:20]} 13. Qd2 {[%emt 0:00:00]} Rfb8 {[%emt 0:01:27]} 14. f4 {[%emt 0:00:00]} e5 {[%emt 0:00:43]} 15. Rf2 {[%emt 0:00:00]} Nh5 {[%emt 0:04:34]} 16. Re1 {[%emt 0:00:00]} exf4 {[%emt 0:01:59]} 17. gxf4 {[%emt 0:00:00]} Nhf6 {[%emt 0:01:16]} 18. Bf3 {[%emt 0:00:00]} g6 {[%emt 0:01:02]} 19. Rg2 {[%emt 0:00:00]} Nf8 {[%emt 0:00:25]} 20. h4 {[%emt 0:00:00]} h5 {[%emt 0:00:00]} 21. Kh1 {[%emt 0:00:00]} Bc8 {[%emt 0:00:00]} 22. f5 {[%emt 0:00:00]} Kh7 {[%emt 0:00:09]} 23. Bg5 {[%emt 0:00:00]} Ng4 {[%emt 0:00:08]} 24. Nd5 {[%emt 0:00:00]} Qd7 {[%emt 0:00:17]} 25. Bxg4 {[%emt 0:00:00]} hxg4 {[%emt 0:00:26]} 26. Nf6+ {[%emt 0:00:00]} Kh8 {[%emt 0:00:00]} 27. Nxd7 {[%emt 0:00:00]} Bxd7 {[%emt 0:00:00]} 28. Bf6+ {[%emt 0:00:00]} Kh7 {[%emt 0:00:00]} 29. Rxg4 {[%emt 0:00:00]} Re8 {[%emt 0:00:25] Check Result:#5} 30. h5 {[%emt 0:00:00]} 1-0

[Event "Asian Amateur Rapid 2024"]
[Site "Al Ain"]
[Date "2024.12.15"]
[Round "5.28"]
[White "Shafaghati, Rastin"]
[Black "Humaidan Mohamed, Alzaabi"]
[Result "0-1"]
[ECO "D00"]
[WhiteElo "1575"]
[BlackElo "1811"]
[Annotator "NA COMBH"]
[PlyCount "126"]
[EventDate "2024.12.15"]
[EventType "swiss"]
[EventCountry "UAE"]
[SourceTitle "playchess.com"]
[Source "ChessBase"]
[SourceQuality "1"]
[TimeControl "900+10"]

1. d4 {[%emt 0:00:02]} Nf6 {[%emt 0:00:02]} 2. Nf3 {[%emt 0:00:01]} g6 {[%emt 0:00:01]} 3. Nc3 {[%emt 0:00:01]} d5 {[%emt 0:00:01]} 4. Bf4 {[%emt 0:00:02]} Bg7 {[%emt 0:00:02]} 5. Nb5 {[%emt 0:00:01]} Na6 {[%emt 0:00:01]} 6. e3 {[%emt 0:00:02]} c6 {[%emt 0:00:10]} 7. Nc3 {[%emt 0:00:02]} O-O {[%emt 0:00:09]} 8. h3 {[%emt 0:00:03]} Nc7 {[%emt 0:00:39]} 9. Be2 {[%emt 0:00:08]} Ne6 {[%emt 0:00:22]} 10. Bh2 {[%emt 0:00:05]} c5 {[%emt 0:00:03]} 11. O-O {[%emt 0:00:19]} cxd4 {[%emt 0:00:15]} 12. exd4 {[%emt 0:00:15]} Ne4 {[%emt 0:00:46]} 13. Qd3 {[%emt 0:05:27]} Nxc3 {[%emt 0:03:19]} 14. Qxc3 {[%emt 0:00:08]} Qb6 {[%emt 0:00:28]} 15. Rfd1 {[%emt 0:03:35]} Bd7 {[%emt 0:01:49]} 16. Qd2 {[%emt 0:00:54]} Bb5 {[%emt 0:00:24]} 17. Bxb5 {[%emt 0:00:17]} Qxb5 {[%emt 0:00:01]} 18. c3 {[%emt 0:00:02]} Rac8 {[%emt 0:00:14]} 19. Ne5 {[%emt 0:01:10]} Rfd8 {[%emt 0:01:35]} 20. Qc2 {[%emt 0:01:52]} Qb6 {[%emt 0:01:09]} 21. Qb3 {[%emt 0:00:14]} Qa6 {[%emt 0:02:09]} 22. Qc2 {[%emt 0:01:23]} Qb6 {[%emt 0:01:26]} 23. Qb3 {[%emt 0:00:16]} Qa6 {[%emt 0:00:09]} 24. Qc2 {[%emt 0:00:33]} Bh6 {[%emt 0:01:53]} 25. Qd3 {[%emt 0:01:00]} Qb6 {[%emt 0:00:22]} 26. Qe2 {[%emt 0:00:12]} Nf4 {[%emt 0:00:46]} 27. Qf3 {[%emt 0:00:14]} Qf6 {[%emt 0:00:03]} 28. Ng4 {[%emt 0:00:04]} Qg5 {[%emt 0:00:59]} 29. Nxh6+ {[%emt 0:00:07]} Qxh6 {[%emt 0:00:01]} 30. Bxf4 {[%emt 0:00:17]} Qh4 {[%emt 0:00:03]} 31. Bg3 {[%emt 0:00:25]} Qg5 {[%emt 0:00:14]} 32. Qf4 {[%emt 0:00:11]} Qxf4 {[%emt 0:00:10]} 33. Bxf4 {[%emt 0:00:02]} b5 {[%emt 0:00:01]} 34. a3 {[%emt 0:00:04]} Rc4 {[%emt 0:00:02]} 35. Re1 {[%emt 0:00:10]} e6 {[%emt 0:00:01]} 36. h4 {[%emt 0:00:28]} Rdc8 {[%emt 0:00:03]} 37. g4 {[%emt 0:00:17]} a5 {[%emt 0:00:01]} 38. Rac1 {[%emt 0:00:25]} R8c6 {[%emt 0:00:17]} 39. h5 {[%emt 0:00:08]} Ra6 {[%emt 0:00:47]} 40. hxg6 {[%emt 0:00:18]} hxg6 {[%emt 0:00:01]} 41. Be5 {[%emt 0:00:11]} Rac6 {[%emt 0:00:10]} 42. Re3 {[%emt 0:00:20]} b4 {[%emt 0:00:23]} 43. axb4 {[%emt 0:00:05]} axb4 {[%emt 0:00:01]} 44. Bf6 {[%emt 0:00:07]} Kf8 {[%emt 0:00:02]} 45. Rh3 {[%emt 0:00:05]} Ke8 {[%emt 0:00:01]} 46. Rh8+ {[%emt 0:00:03]} Kd7 {[%emt 0:00:00]} 47. Rh3 {[%emt 0:00:18]} Kc8 {[%emt 0:00:17]} 48. Kf1 {[%emt 0:00:08]} Kb7 {[%emt 0:00:02]} 49. Ke2 {[%emt 0:00:04]} Kb6 {[%emt 0:00:06]} 50. Kd3 {[%emt 0:00:14]} Kb5 {[%emt 0:00:02]} 51. Rh8 {[%emt 0:00:17]} Ka4 {[%emt 0:00:10]} 52. Ra8+ {[%emt 0:00:22]} Kb3 {[%emt 0:00:02]} 53. Rb8 {[%emt 0:00:05]} Kxb2 {[%emt 0:00:09]} 54. Rc2+ {[%emt 0:00:17]} Kb3 {[%emt 0:00:02]} 55. Be7 {[%emt 0:00:05]} Rxc3+ {[%emt 0:00:03]} 56. Rxc3+ {[%emt 0:00:02]} Rxc3+ {[%emt 0:00:01]} 57. Ke2 {[%emt 0:00:03]} Rc4 {[%emt 0:00:01]} 58. Bc5 {[%emt 0:00:02]} Kc3 {[%emt 0:00:04]} 59. Kd1 {[%emt 0:00:09]} b3 {[%emt 0:00:16]} 60. Kc1 {[%emt 0:00:04]} Ra4 {[%emt 0:00:01]} 61. Bb4+ {[%emt 0:00:08]} Rxb4 {[%emt 0:00:05]} 62. Rxb4 {[%emt 0:00:02]} Kxb4 {[%emt 0:00:01]} 63. Kb2 {[%emt 0:00:03] Check Result:-#14} Kc4 {[%emt 0:00:01]} 0-1

[Event "Asian Amateur Rapid 2024"]
[Site "Al Ain"]
[Date "2024.12.15"]
[Round "5.29"]
[White "Maleki, Alimohammad"]
[Black "Rashed Abubaker, Alhemeiri"]
[Result "0-1"]
[ECO "B13"]
[WhiteElo "1488"]
[BlackElo "1861"]
[Annotator "NA COMBH"]
[PlyCount "80"]
[EventDate "2024.12.15"]
[EventType "swiss"]
[EventCountry "UAE"]
[SourceTitle "playchess.com"]
[Source "ChessBase"]
[SourceQuality "1"]
[TimeControl "900+10"]

1. d4 {[%emt 0:00:03]} d5 {[%emt 0:00:01]} 2. Bf4 {[%emt 0:00:02]} Nf6 {[%emt 0:00:01]} 3. e3 {[%emt 0:00:03]} c5 {[%emt 0:00:02]} 4. Nc3 {[%emt 0:00:23]} cxd4 {[%emt 0:01:30]} 5. exd4 {[%emt 0:00:09]} a6 {[%emt 0:00:03]} 6. Bd3 {[%emt 0:01:05]} Bg4 {[%emt 0:00:03]} 7. f3 {[%emt 0:00:07]} Bd7 {[%emt 0:00:20]} 8. Qd2 {[%emt 0:00:52]} Nc6 {[%emt 0:00:02]} 9. Nge2 {[%emt 0:00:41]} e6 {[%emt 0:00:02]} 10. a3 {[%emt 0:00:28]} b5 {[%emt 0:01:03]} 11. b4 {[%emt 0:03:52]} Be7 {[%emt 0:00:07]} 12. O-O {[%emt 0:00:33]} O-O {[%emt 0:00:07]} 13. Ng3 {[%emt 0:00:32]} Qb6 {[%emt 0:00:48]} 14. Be3 {[%emt 0:00:38]} Rfc8 {[%emt 0:00:12]} 15. Na2 {[%emt 0:00:39]} Bd6 {[%emt 0:00:04]} 16. Nc1 {[%emt 0:00:36]} a5 {[%emt 0:00:43]} 17. Nb3 {[%emt 0:01:27]} axb4 {[%emt 0:00:11]} 18. Nc5 {[%emt 0:00:29]} bxa3 {[%emt 0:00:20]} 19. Rfb1 {[%emt 0:01:18]} b4 {[%emt 0:00:09]} 20. c3 {[%emt 0:00:41]} Rcb8 {[%emt 0:05:12]} 21. Qc2 {[%emt 0:01:08]} Qa5 {[%emt 0:00:34]} 22. Qa2 {[%emt 0:01:32]} g6 {[%emt 0:02:41]} 23. Nb3 {[%emt 0:00:36]} Qc7 {[%emt 0:00:18]} 24. Nc5 {[%emt 0:00:37]} Bxc5 {[%emt 0:00:30]} 25. dxc5 {[%emt 0:00:02]} bxc3 {[%emt 0:00:38]} 26. Rxb8+ {[%emt 0:00:01]} Qxb8 {[%emt 0:00:04]} 27. Rb1 {[%emt 0:00:16]} Nb4 {[%emt 0:00:34]} 28. Qb3 {[%emt 0:00:42]} a2 {[%emt 0:00:09]} 29. Ra1 {[%emt 0:00:11]} Nxd3 {[%emt 0:00:33]} 30. Qxb8+ {[%emt 0:00:01]} Rxb8 {[%emt 0:00:01]} 31. Rxa2 {[%emt 0:00:01]} Kg7 {[%emt 0:00:52]} 32. Bd4 {[%emt 0:00:13]} Rb1+ {[%emt 0:00:13]} 33. Nf1 {[%emt 0:00:00]} Rb2 {[%emt 0:00:01]} 34. Rxb2 {[%emt 0:00:13]} cxb2 {[%emt 0:00:02]} 35. Nd2 {[%emt 0:00:02]} Ba4 {[%emt 0:00:06]} 36. Kf1 {[%emt 0:00:21]} e5 {[%emt 0:00:01]} 37. Bxb2 {[%emt 0:00:25]} Nxb2 {[%emt 0:00:02]} 38. Nb1 {[%emt 0:00:06]} Nd7 {[%emt 0:00:04]} 39. Nc3 {[%emt 0:00:03]} Bc6 {[%emt 0:00:01]} 40. Ke2 {[%emt 0:00:13] Check Result:-25.33} Nxc5 {[%emt 0:00:00]} 0-1